Workbook

Sheet UnitHydrographs
A1: Watershed A | G1: Watershed B | I1: CN | M1: Watershed C | O1: CN
A2: Forest | B2: 1 | G2: Soils group B | M2: Soils Group D
A3: Soils group C | G3: Forest | H3: 0.3 | I3: 55 | J3: =I3*H3 -> 16.5 | M3: Residential | N3: 0.6 | O3: 87 | P3: =O3*N3 -> 52.2
A4: CN | B4: 70 | G4: Meadow | H4: 0.6 | I4: 58 | J4: =I4*H4 -> 34.8 | M4: C&B | N4: 0.2 | O4: 95 | P4: =O4*N4 -> 19
G5: Residential | H5: 0.1 | I5: 70 | J5: 7 | M5: Open | N5: 0.2 | O5: 80 | P5: 16
A7: Overall | B7: =B4 -> 70 | G7: Overall | I7: =SUM(J3:J5) -> 58.3 | M7: Overall | O7: =SUM(P3:P5) -> 87.2
A8: S | B8: =1000/B7-10 -> 4.285714286 | C8: in | I8: =1000/I7-10 -> 7.152658662 | J8: in | O8: =1000/O7-10 -> 1.467889908
A9: Slp | B9: 20 | C9: % | I9: 15 | J9: % | O9: 3 | P9: %
A10: Length | B10: 4 | C10: mi | I10: 3 | J10: mi | O10: 3.5 | P10: mi
A11: Length | B11: =B10*5280 -> 21120 | C11: ft | I11: =I10*5280 -> 15840 | J11: ft | O11: =O10*5280 -> 18480 | P11: ft
A12: Area | B12: 3 | C12: mi^2 | I12: 4 | J12: mi^2 | O12: 3.5 | P12: mi^2
A13: tp | B13: =B11^0.8*(B8+1)^0.7/(1900*B9^0.5) -> 1.0880757 | C13: hr | I13: =I11^0.8*(I8+1)^0.7/(1900*I9^0.5) -> 1.351806072 | J13: hr | O13: =O11^0.8*(O8+1)^0.7/(1900*O9^0.5) -> 1.481410412 | P13: hr
A15: Use D= | B15: 0.25 | C15: hr | H15: Use D= | I15: 0.25 | J15: hr | N15: Use D= | O15: 0.25 | P15: hr
A16: TR | B16: =B15/2+B13 -> 1.2130757 | C16: hr | H16: TR | I16: =I15/2+I13 -> 1.476806072 | J16: hr | N16: TR | O16: =O15/2+O13 -> 1.606410412 | P16: hr
A17: Qp | B17: =484*B12/B16 -> 1196.957453 | C17: cfs | H17: Qp | I17: =484*I12/I16 -> 1310.937188 | J17: cfs | N17: Qp | O17: =484*O12/O16 -> 1054.525038 | P17: cfs
A18: B | B18: =1.67*B16 -> 2.025836418 | C18: hr | H18: B | I18: =1.67*I16 -> 2.466266141 | J18: hr | N18: B | O18: =1.67*O16 -> 2.682705387 | P18: hr
D20: Interpolated A | K20: Interpolated B | Q20: Interpolated C
A21: t | B21: Q | D21: t | E21: Q | H21: t | I21: Q | K21: t | L21: Q | N21: t | O21: Q | Q21: t | R21: Q
A22: =StdUH!$A4*B$16 -> 0 | B22: =B$17*StdUH!$B4 -> 0 | D22: 0 | E22: =Linterp($A$22:$B$55,D22) -> 0 | H22: =StdUH!$A4*I$16 -> 0 | I22: =I$17*StdUH!$B4 -> 0 | K22: 0 | L22: =Linterp($H$22:$I$55,K22) -> 0 | N22: =StdUH!$A4*O$16 -> 0 | O22: =O$17*StdUH!$B4 -> 0 | Q22: 0 | R22: =Linterp($N$22:$O$55,Q22) -> 0
A23: =StdUH!$A5*B$16 -> 0.12130757 | B23: =B$17*StdUH!$B5 -> 35.9087236 | D23: =D22+$B$15 -> 0.25 | E23: =Linterp($A$22:$B$55,D23) -> 126.2538084 | H23: =StdUH!$A5*I$16 -> 0.1476806072 | I23: =I$17*StdUH!$B5 -> 39.32811564 | K23: =K22+$B$15 -> 0.25 | L23: =Linterp($H$22:$I$55,K23) -> 102.9072204 | N23: =StdUH!$A5*O$16 -> 0.1606410412 | O23: =O$17*StdUH!$B5 -> 31.63575113 | Q23: =Q22+$B$15 -> 0.25 | R23: =Linterp($N$22:$O$55,Q23) -> 72.69741329
A24: =StdUH!$A6*B$16 -> 0.2426151399 | B24: =B$17*StdUH!$B6 -> 119.6957453 | D24: =D23+$B$15 -> 0.5 | E24: 394.3743682 | H24: =StdUH!$A6*I$16 -> 0.2953612145 | I24: =I$17*StdUH!$B6 -> 131.0937188 | K24: =K23+$B$15 -> 0.5 | L24: =Linterp($H$22:$I$55,K24) -> 309.7511051 | N24: =StdUH!$A6*O$16 -> 0.3212820823 | O24: =O$17*StdUH!$B6 -> 105.4525038 | Q24: =Q23+$B$15 -> 0.5 | R24: =Linterp($N$22:$O$55,Q24) -> 214.5995943
A25: =StdUH!$A7*B$16 -> 0.3639227099 | B25: =B$17*StdUH!$B7 -> 227.4219161 | D25: 0.75 | E25: 824.9682557 | H25: =StdUH!$A7*I$16 -> 0.4430418217 | I25: =I$17*StdUH!$B7 -> 249.0780657 | K25: 0.75 | L25: 635.6999139 | N25: =StdUH!$A7*O$16 -> 0.4819231235 | O25: =O$17*StdUH!$B7 -> 200.3597572 | Q25: 0.75 | R25: 439.744439
A26: =StdUH!$A8*B$16 -> 0.4852302798 | B26: =B$17*StdUH!$B8 -> 371.0568105 | D26: 1 | E26: 1130.6586 | H26: =StdUH!$A8*I$16 -> 0.590722429 | I26: =I$17*StdUH!$B8 -> 406.3905283 | K26: 1 | L26: 1027.013316 | N26: =StdUH!$A8*O$16 -> 0.6425641647 | O26: =O$17*StdUH!$B8 -> 326.9027617 | Q26: 1 | R26: 733.959424
A27: =StdUH!$A9*B$16 -> 0.6065378498 | B27: =B$17*StdUH!$B9 -> 562.570003 | D27: 1.25 | E27: 1193.314085 | H27: =StdUH!$A9*I$16 -> 0.7384030362 | I27: =I$17*StdUH!$B9 -> 616.1404784 | K27: 1.25 | L27: 1255.684768 | N27: =StdUH!$A9*O$16 -> 0.8032052058 | O27: =O$17*StdUH!$B9 -> 495.6267677 | Q27: 1.25 | R27: 955.3423682
A28: =StdUH!$A10*B$16 -> 0.7278454198 | B28: =B$17*StdUH!$B10 -> 789.9919192 | D28: 1.5 | E28: 1082.566137 | H28: =StdUH!$A10*I$16 -> 0.8860836435 | I28: =I$17*StdUH!$B10 -> 865.2185442 | K28: 1.5 | L28: 1308.8783 | N28: =StdUH!$A10*O$16 -> 0.963846247 | O28: =O$17*StdUH!$B10 -> 695.9865249 | Q28: 1.5 | R28: 1047.539747
A29: =StdUH!$A11*B$16 -> 0.8491529897 | B29: =B$17*StdUH!$B11 -> 981.5051117 | D29: 1.75 | E29: 882.6196561 | H29: =StdUH!$A11*I$16 -> 1.033764251 | I29: =I$17*StdUH!$B11 -> 1074.968494 | K29: 1.75 | L29: 1230.978113 | N29: =StdUH!$A11*O$16 -> 1.124487288 | O29: =O$17*StdUH!$B11 -> 864.710531 | Q29: 1.75 | R29: 1045.099127
A30: =StdUH!$A12*B$16 -> 0.9704605597 | B30: =B$17*StdUH!$B12 -> 1113.170432 | D30: 2 | E30: 612.0022796 | H30: =StdUH!$A12*I$16 -> 1.181444858 | I30: =I$17*StdUH!$B12 -> 1219.171585 | K30: 2 | L30: 1070.486185 | N30: =StdUH!$A12*O$16 -> 1.285128329 | O30: =O$17*StdUH!$B12 -> 980.7082851 | Q30: 2 | R30: 947.4819984
A31: =StdUH!$A13*B$16 -> 1.09176813 | B31: =B$17*StdUH!$B13 -> 1184.987879 | D31: 2.25 | E31: 427.4650282 | H31: =StdUH!$A13*I$16 -> 1.329125465 | I31: =I$17*StdUH!$B13 -> 1297.827816 | K31: 2.25 | L31: 854.3773049 | N31: =StdUH!$A13*O$16 -> 1.44576937 | O31: =O$17*StdUH!$B13 -> 1043.979787 | Q31: 2.25 | R31: 821.856392
A32: =StdUH!$A14*B$16 -> 1.2130757 | B32: =B$17*StdUH!$B14 -> 1196.957453 | D32: 2.5 | E32: 308.5514977 | H32: =StdUH!$A14*I$16 -> 1.476806072 | I32: =I$17*StdUH!$B14 -> 1310.937188 | K32: 2.5 | L32: 612.4142137 | N32: =StdUH!$A14*O$16 -> 1.606410412 | O32: =O$17*StdUH!$B14 -> 1054.525038 | Q32: 2.5 | R32: 645.8778399
A33: =StdUH!$A15*B$16 -> 1.33438327 | B33: =B$17*StdUH!$B15 -> 1184.987879 | D33: 2.75 | E33: 223.7239615 | H33: =StdUH!$A15*I$16 -> 1.62448668 | I33: =I$17*StdUH!$B15 -> 1297.827816 | K33: 2.75 | L33: 462.3989922 | N33: =StdUH!$A15*O$16 -> 1.767051453 | O33: =O$17*StdUH!$B15 -> 1043.979787 | Q33: 2.75 | R33: 476.3037495
A34: =StdUH!$A16*B$16 -> 1.45569084 | B34: =B$17*StdUH!$B16 -> 1113.170432 | D34: 3 | E34: 158.4645774 | H34: =StdUH!$A16*I$16 -> 1.772167287 | I34: =I$17*StdUH!$B16 -> 1219.171585 | K34: 3 | L34: 352.0325307 | N34: =StdUH!$A16*O$16 -> 1.927692494 | O34: =O$17*StdUH!$B16 -> 980.7082851 | Q34: 3 | R34: 368.5452533
A35: =StdUH!$A17*B$16 -> 1.576998409 | B35: =B$17*StdUH!$B17 -> 1029.38341 | D35: 3.25 | E35: 113.8653108 | H35: =StdUH!$A17*I$16 -> 1.919847894 | I35: =I$17*StdUH!$B17 -> 1127.405982 | K35: 3.25 | L35: 271.0905982 | N35: =StdUH!$A17*O$16 -> 2.088333535 | O35: =O$17*StdUH!$B17 -> 906.8915325 | Q35: 3.25 | R35: 286.3587478
A36: =StdUH!$A18*B$16 -> 1.698305979 | B36: =B$17*StdUH!$B18 -> 933.6268136 | D36: 3.5 | E36: 80.94414926 | H36: =StdUH!$A18*I$16 -> 2.067528501 | I36: =I$17*StdUH!$B18 -> 1022.531007 | K36: 3.5 | L36: 204.5142948 | N36: =StdUH!$A18*O$16 -> 2.248974576 | O36: =O$17*StdUH!$B18 -> 822.5295294 | Q36: 3.5 | R36: 226.4578601
A37: =StdUH!$A19*B$16 -> 1.819613549 | B37: =B$17*StdUH!$B19 -> 813.9310682 | D37: 3.75 | E37: 57.63508105 | H37: =StdUH!$A19*I$16 -> 2.215209109 | I37: =I$17*StdUH!$B19 -> 891.4372879 | K37: 3.75 | L37: 156.1945832 | N37: =StdUH!$A19*O$16 -> 2.409615617 | O37: =O$17*StdUH!$B19 -> 717.0770257 | Q37: 3.75 | R37: 175.7691126
A38: =StdUH!$A20*B$16 -> 1.940921119 | B38: =B$17*StdUH!$B20 -> 670.2961738 | D38: 4 | E38: 41.46596976 | H38: =StdUH!$A20*I$16 -> 2.362889716 | I38: =I$17*StdUH!$B20 -> 734.1248254 | K38: 4 | L38: 118.9253555 | N38: =StdUH!$A20*O$16 -> 2.570256659 | O38: =O$17*StdUH!$B20 -> 590.5340211 | Q38: 4 | R38: 136.028731
A39: =StdUH!$A21*B$16 -> 2.062228689 | B39: =B$17*StdUH!$B21 -> 550.6004285 | D39: 4.25 | E39: 29.75678513 | H39: =StdUH!$A21*I$16 -> 2.510570323 | I39: =I$17*StdUH!$B21 -> 603.0311065 | K39: 4.25 | L39: 89.71852637 | N39: =StdUH!$A21*O$16 -> 2.7308977 | O39: =O$17*StdUH!$B21 -> 485.0815174 | Q39: 4.25 | R39: 105.6132899
A40: =StdUH!$A22*B$16 -> 2.183536259 | B40: =B$17*StdUH!$B22 -> 466.8134068 | D40: 4.5 | E40: 21.20126866 | H40: =StdUH!$A22*I$16 -> 2.65825093 | I40: =I$17*StdUH!$B22 -> 511.2655034 | K40: 4.5 | L40: 67.46904747 | N40: =StdUH!$A22*O$16 -> 2.891538741 | O40: =O$17*StdUH!$B22 -> 411.2647647 | Q40: 4.5 | R40: 81.05033768
A41: =StdUH!$A23*B$16 -> 2.304843829 | B41: =B$17*StdUH!$B23 -> 394.9959596 | D41: 4.75 | E41: 15.18540182 | H41: =StdUH!$A23*I$16 -> 2.805931538 | I41: =I$17*StdUH!$B23 -> 432.6092721 | K41: 4.75 | L41: 51.25497587 | N41: =StdUH!$A23*O$16 -> 3.052179782 | O41: =O$17*StdUH!$B23 -> 347.9932625 | Q41: 4.75 | R41: 62.99801535
A42: =StdUH!$A24*B$16 -> 2.426151399 | B42: =B$17*StdUH!$B24 -> 335.1480869 | D42: 5 | E42: 11.41771516 | H42: =StdUH!$A24*I$16 -> 2.953612145 | I42: =I$17*StdUH!$B24 -> 367.0624127 | K42: 5 | L42: 39.04932025 | N42: =StdUH!$A24*O$16 -> 3.212820823 | O42: =O$17*StdUH!$B24 -> 295.2670106 | Q42: 5 | R42: 49.09897886
A43: =StdUH!$A25*B$16 -> 2.668766539 | B43: =B$17*StdUH!$B25 -> 247.7701928 | D43: 5.25 | E43: 8.457576429 | H43: =StdUH!$A25*I$16 -> 3.248973359 | I43: =I$17*StdUH!$B25 -> 271.3639979 | K43: 5.25 | L43: 29.89098658 | N43: =StdUH!$A25*O$16 -> 3.534102906 | O43: =O$17*StdUH!$B25 -> 218.2866828 | Q43: 5.25 | R43: 38.22802374
A44: =StdUH!$A26*B$16 -> 2.911381679 | B44: =B$17*StdUH!$B26 -> 175.9527456 | D44: 5.5 | E44: 5.578662628 | H44: =StdUH!$A26*I$16 -> 3.544334574 | I44: =I$17*StdUH!$B26 -> 192.7077667 | K44: 5.5 | L44: 22.64302983 | N44: =StdUH!$A26*O$16 -> 3.855384988 | O44: =O$17*StdUH!$B26 -> 155.0151805 | Q44: 5.5 | R44: 29.57805263
A45: =StdUH!$A27*B$16 -> 3.153996819 | B45: =B$17*StdUH!$B27 -> 128.0744475 | D45: 5.75 | E45: 3.111880354 | H45: =StdUH!$A27*I$16 -> 3.839695788 | I45: =I$17*StdUH!$B27 -> 140.2702791 | K45: 5.75 | L45: 17.21161894 | N45: =StdUH!$A27*O$16 -> 4.17666707 | O45: =O$17*StdUH!$B27 -> 112.834179 | Q45: 5.75 | R45: 23.01357178
A46: =StdUH!$A28*B$16 -> 3.396611959 | B46: =B$17*StdUH!$B28 -> 92.1657239 | D46: 6 | E46: 0.6450980792 | H46: =StdUH!$A28*I$16 -> 4.135057003 | I46: =I$17*StdUH!$B28 -> 100.9421635 | K46: 6 | L46: 13.43204286 | N46: =StdUH!$A28*O$16 -> 4.497949153 | O46: =O$17*StdUH!$B28 -> 81.19842791 | Q46: 6 | R46: 17.87307465
A47: =StdUH!$A29*B$16 -> 3.639227099 | B47: =B$17*StdUH!$B29 -> 65.83265993 | D47: 6.25 | E47: 0 | H47: =StdUH!$A29*I$16 -> 4.430418217 | I47: =I$17*StdUH!$B29 -> 72.10154535 | K47: 6.25 | L47: 10.76899072 | N47: =StdUH!$A29*O$16 -> 4.819231235 | O47: =O$17*StdUH!$B29 -> 57.99887708 | Q47: 6.25 | R47: 13.90576787
A48: =StdUH!$A30*B$16 -> 3.881842239 | B48: =B$17*StdUH!$B30 -> 47.87829813 | H48: =StdUH!$A30*I$16 -> 4.725779432 | I48: =I$17*StdUH!$B30 -> 52.43748753 | K48: 6.5 | L48: 8.105938585 | N48: =StdUH!$A30*O$16 -> 5.140513317 | O48: =O$17*StdUH!$B30 -> 42.18100151 | Q48: 6.5 | R48: 11.01402663
A49: =StdUH!$A31*B$16 -> 4.124457379 | B49: =B$17*StdUH!$B31 -> 34.71176614 | H49: =StdUH!$A31*I$16 -> 5.021140646 | I49: =I$17*StdUH!$B31 -> 38.01717846 | K49: 6.75 | L49: 5.628186365 | N49: =StdUH!$A31*O$16 -> 5.4617954 | O49: =O$17*StdUH!$B31 -> 30.58122609 | Q49: 6.75 | R49: 9.044682378
A50: =StdUH!$A32*B$16 -> 4.367072519 | B50: =B$17*StdUH!$B32 -> 25.13610652 | H50: =StdUH!$A32*I$16 -> 5.316501861 | I50: =I$17*StdUH!$B32 -> 27.52968095 | K50: 7 | L50: 3.408976253 | N50: =StdUH!$A32*O$16 -> 5.783077482 | O50: =O$17*StdUH!$B32 -> 22.14502579 | Q50: 7 | R50: 7.075338124
A51: =StdUH!$A33*B$16 -> 4.609687658 | B51: =B$17*StdUH!$B33 -> 17.9543618 | H51: =StdUH!$A33*I$16 -> 5.611863075 | I51: =I$17*StdUH!$B33 -> 19.66405782 | K51: 7.25 | L51: 1.18976614 | N51: =StdUH!$A33*O$16 -> 6.104359564 | O51: =O$17*StdUH!$B33 -> 15.81787557 | Q51: 7.25 | R51: 5.133765757
A52: =StdUH!$A34*B$16 -> 4.852302798 | B52: =B$17*StdUH!$B34 -> 13.16653199 | H52: =StdUH!$A34*I$16 -> 5.90722429 | I52: =I$17*StdUH!$B34 -> 14.42030907 | K52: 7.5 | L52: 0 | N52: =StdUH!$A34*O$16 -> 6.425641647 | O52: =O$17*StdUH!$B34 -> 11.59977542 | Q52: 7.5 | R52: 3.492645546
A53: =StdUH!$A35*B$16 -> 5.458840648 | B53: =B$17*StdUH!$B35 -> 5.984787266 | H53: =StdUH!$A35*I$16 -> 6.645627326 | I53: =I$17*StdUH!$B35 -> 6.554685941 | N53: =StdUH!$A35*O$16 -> 7.228846852 | O53: =O$17*StdUH!$B35 -> 5.272625189 | Q53: 7.75 | R53: 1.851525334
A54: =StdUH!$A36*B$16 -> 6.065378498 | B54: =B$17*StdUH!$B36 -> 0 | H54: =StdUH!$A36*I$16 -> 7.384030362 | I54: =I$17*StdUH!$B36 -> 0 | N54: =StdUH!$A36*O$16 -> 8.032052058 | O54: =O$17*StdUH!$B36 -> 0 | Q54: 8 | R54: 0.2104051227
A55: =StdUH!$A37*B$16 -> 121.30757 | B55: =B$17*StdUH!$B37 -> 0 | H55: =StdUH!$A37*I$16 -> 147.6806072 | I55: =I$17*StdUH!$B37 -> 0 | N55: =StdUH!$A37*O$16 -> 160.6410412 | O55: =O$17*StdUH!$B37 -> 0 | Q55: =Q54+$B$15 -> 8.25 | R55: 0

Sheet StdUH
A1: SCS Dimensionless Unit Hydrograph
A2: Time Ratios | B2: Discharge Ratios
A3: (t/tp) | B3: (q/qp)
A4: 0 | B4: 0
A5: 0.1 | B5: 0.03
A6: 0.2 | B6: 0.1
A7: 0.3 | B7: 0.19
A8: 0.4 | B8: 0.31
A9: 0.5 | B9: 0.47
A10: 0.6 | B10: 0.66
A11: 0.7 | B11: 0.82
A12: 0.8 | B12: 0.93
A13: 0.9 | B13: 0.99
A14: 1 | B14: 1
A15: 1.1 | B15: 0.99
A16: 1.2 | B16: 0.93
A17: 1.3 | B17: 0.86
A18: 1.4 | B18: 0.78
A19: 1.5 | B19: 0.68
A20: 1.6 | B20: 0.56
A21: 1.7 | B21: 0.46
A22: 1.8 | B22: 0.39
A23: 1.9 | B23: 0.33
A24: 2 | B24: 0.28
A25: 2.2 | B25: 0.207
A26: 2.4 | B26: 0.147
A27: 2.6 | B27: 0.107
A28: 2.8 | B28: 0.077
A29: 3 | B29: 0.055
A30: 3.2 | B30: 0.04
A31: 3.4 | B31: 0.029
A32: 3.6 | B32: 0.021
A33: 3.8 | B33: 0.015
A34: 4 | B34: 0.011
A35: 4.5 | B35: 0.005
A36: 5 | B36: 0
A37: 100 | B37: 0

Sheet DesignHydrograph
A1: Design Rainfall
A2: Dur | B2: 0.25 | C2: 0.5 | D2: 1 | E2: 2 | F2: 3
A3: Cum | B3: 1.14 | C3: 1.53 | D3: 1.9 | E3: 2.18 | F3: 2.27
D6: Threshold | E6: 0.5 | F6: in
A7: t | B7: P (in per Dt) | C7: Cum P
A8: 0.25 | C8: =B8 -> 0 | E8: =MAX(B8-$E$6,0) -> 0
A9: =A8+$B$2 -> 0.5 | C9: =C8+B9 -> 0 | E9: =MAX(B9-$E$6,0) -> 0
A10: =A9+$B$2 -> 0.75 | C10: =C9+B10 -> 0 | E10: 0
A11: 1 | C11: 0 | E11: 0
A12: 1.25 | C12: 0 | E12: 0
A13: 1.5 | C13: 0 | E13: 0
A14: 1.75 | C14: 0 | E14: 0
A15: 2 | C15: 0 | E15: 0
A16: 2.25 | C16: 0 | E16: 0
A17: 2.5 | C17: 0 | E17: 0
A18: 2.75 | C18: 0 | E18: 0
A19: 3 | C19: 0 | E19: 0
E21: =SUM(E8:E19) -> 0
A23: Watershed | B23: A | C23: B | D23: C
A24: S | B24: =UnitHydrographs!B8 -> 4.285714286 | C24: =UnitHydrographs!I8 -> 7.152658662 | D24: =UnitHydrographs!O8 -> 1.467889908
A26: P | B26: =F3 -> 2.27 | C26: =B26 -> 2.27 | D26: =C26 -> 2.27 | E26: in
A27: Ia | B27: =0.2*B24 -> 0.8571428571 | C27: =0.2*C24 -> 1.430531732 | D27: 0.2935779817 | E27: in
A28: Q | B28: =(B26-0.2*B24)^2/(B26+0.8*B24) -> 0.3502922322 | C28: =(C26-0.2*C24)^2/(C26+0.8*C24) -> 0.08817514768 | D28: =(D26-0.2*D24)^2/(D26+0.8*D24) -> 1.13411447 | E28: in
A29: F | B29: =(B27-0.2*B25)^2/(B27+0.8*B25) -> 0.8571428571 | C29: =C26-C27-C28 -> 0.7512931199 | D29: =D26-D27-D28 -> 0.8423075485 | E29: in
A31: Excess Rainfall Hyetographs after having subtracted infiltration and Ia
A32: t | B32: A | C32: B | D32: C
A33: 0.25
A34: =A33+$B$2 -> 0.5
A35: =A34+$B$2 -> 0.75
A36: 1
A37: 1.25
A38: 1.5
A39: 1.75
A40: 2
A41: 2.25
A42: 2.5
A43: 2.75
A44: 3
A47: Hydrographs | C47: P | F47: P | I47: P
C48: =B39 -> 0 | F48: =C39 -> 0 | I48: =D38 -> 0 | J48: =D39 -> 0 | L48: A+B lagged 0.75 hr (3 time steps)
A49: t | B49: UH A | C49: H A | E49: UH B | F49: H B | H49: UH C | I49: H C | M49: Comb A +B + C
A50: 1.5 | B50: =UnitHydrographs!E22 -> 0 | E50: =UnitHydrographs!L22 -> 0 | H50: =UnitHydrographs!R22 -> 0 | I50: =H50*$I$48 -> 0 | M50: =I50+J50+L50 -> 0
A51: =A50+0.25 -> 1.75 | C51: =B50*$C$48 -> 0 | F51: =E50*$F$48 -> 0 | J51: =H50*$J$48 -> 0
A52: =A51+0.25 -> 2
A53: 2.25
A54: 2.5 | L54: =C51+F51 -> 0
A55: 2.75
A56: 3
A57: 3.25
A58: 3.5
A59: 3.75
A60: 4
A61: 4.25
A62: 4.5
A63: 4.75
A64: 5
A65: 5.25
A66: 5.5
A67: 5.75
A68: 6
A69: 6.25
A70: 6.5
A71: 6.75
A72: 7
A73: 7.25
A74: 7.5
A75: 7.75
A76: 8
A77: =A76+0.25 -> 8.25
A78: 8.5
A79: 8.75
A80: 9
A81: 9.25
A82: 9.5
A83: 9.75
A84: 10
